[Event "Titled Tuesday Blitz July 11 Late 2023"]
[White "Antipov, Mikhail Al."]
[Black "Carlsen, Magnus"]
[WhiteFideId "4107012"]
[BlackFideId "1503014"]
[WhiteElo "2915"]
[BlackElo "3281"]
[Result "1/2-1/2"]
[Round "6"]
[TimeControl "180+2"]
[Date "2023.07.11"]
[WhiteClock "0:00:09"]
[BlackClock "0:00:07"]
[Board "4"]

1. e4 {[%clk 0:03:00]}  a6 {[%clk 0:02:55]} 2. d4 {[%clk 0:03:00]}  c6 {[%clk 0:02:54]} 3. Bd3 {[%clk 0:03:00]}  d5 {[%clk 0:02:53]} 4. exd5 {[%clk 0:03:01]}  Qxd5 {[%clk 0:02:48]} 5. Nf3 {[%clk 0:02:58]}  Bg4 {[%clk 0:02:48]} 6. Nc3 {[%clk 0:02:58]}  Qd8 {[%clk 0:02:44]} 7. O-O {[%clk 0:02:52]}  e6 {[%clk 0:02:42]} 8. Ne4 {[%clk 0:02:27]}  Nd7 {[%clk 0:02:40]} 9. Ng3 {[%clk 0:02:24]}  Ngf6 {[%clk 0:02:35]} 10. h3 {[%clk 0:02:24]}  Bxf3 {[%clk 0:02:33]} 11. Qxf3 {[%clk 0:02:24]}  Bd6 {[%clk 0:02:31]} 12. c3 {[%clk 0:02:22]}  Qc7 {[%clk 0:02:31]} 13. Re1 {[%clk 0:02:18]}  O-O {[%clk 0:02:19]} 14. Bg5 {[%clk 0:02:14]}  h6 {[%clk 0:02:17]} 15. Bd2 {[%clk 0:02:14]}  c5 {[%clk 0:02:16]} 16. Ne4 {[%clk 0:02:02]}  cxd4 {[%clk 0:02:00]} 17. cxd4 {[%clk 0:02:02]}  Nxe4 {[%clk 0:01:24]} 18. Rxe4 {[%clk 0:02:03]}  Nf6 {[%clk 0:01:24]} 19. Bxh6 {[%clk 0:01:31]}  Nxe4 {[%clk 0:01:24]} 20. Qxe4 {[%clk 0:01:31]}  g6 {[%clk 0:01:24]} 21. h4 {[%clk 0:00:55]}  Qa5 {[%clk 0:01:15]} 22. Qg4 {[%clk 0:00:28]}  Qh5 {[%clk 0:01:05]} 23. Qxh5 {[%clk 0:00:28]}  gxh5 {[%clk 0:01:06]} 24. Bxf8 {[%clk 0:00:28]}  Bxf8 {[%clk 0:01:06]} 25. Be2 {[%clk 0:00:29]}  Bg7 {[%clk 0:01:05]} 26. Rd1 {[%clk 0:00:29]}  Rd8 {[%clk 0:01:05]} 27. Bxh5 {[%clk 0:00:26]}  Bxd4 {[%clk 0:01:05]} 28. Kf1 {[%clk 0:00:26]}  Kg7 {[%clk 0:01:03]} 29. b4 {[%clk 0:00:19]}  b6 {[%clk 0:01:02]} 30. Rc1 {[%clk 0:00:16]}  Be5 {[%clk 0:00:58]} 31. Rc6 {[%clk 0:00:16]}  Rd2 {[%clk 0:00:56]} 32. g3 {[%clk 0:00:05]}  Bd4 {[%clk 0:00:49]} 33. f3 {[%clk 0:00:05]}  Rf2+ {[%clk 0:00:26]} 34. Ke1 {[%clk 0:00:05]}  Rxa2 {[%clk 0:00:27]} 35. Rc7 {[%clk 0:00:06]}  Bf2+ {[%clk 0:00:26]} 36. Kd1 {[%clk 0:00:06]}  Kh6 {[%clk 0:00:27]} 37. Bxf7 {[%clk 0:00:06]}  Bxg3 {[%clk 0:00:25]} 38. Rc6 {[%clk 0:00:04]}  Bf2 {[%clk 0:00:23]} 39. Bxe6 {[%clk 0:00:04]}  Ra1+ {[%clk 0:00:18]} 40. Kc2 {[%clk 0:00:03]}  Kh5 {[%clk 0:00:15]} 41. Rc4 {[%clk 0:00:03]}  Bxh4 {[%clk 0:00:10]} 42. Bf7+ {[%clk 0:00:03]}  Kg5 {[%clk 0:00:10]} 43. Rg4+ {[%clk 0:00:03]}  Kf6 {[%clk 0:00:11]} 44. Rxh4 {[%clk 0:00:03]}  Kxf7 {[%clk 0:00:12]} 45. Rh6 {[%clk 0:00:04]}  b5 {[%clk 0:00:11]} 46. Rb6 {[%clk 0:00:04]}  Ra4 {[%clk 0:00:10]} 47. Kb3 {[%clk 0:00:05]}  Ke7 {[%clk 0:00:11]} 48. f4 {[%clk 0:00:05]}  Ra1 {[%clk 0:00:10]} 49. f5 {[%clk 0:00:05]}  Rf1 {[%clk 0:00:08]} 50. Rxa6 {[%clk 0:00:06]}  Rf3+ {[%clk 0:00:08]} 51. Kb2 {[%clk 0:00:06]}  Rxf5 {[%clk 0:00:09]} 52. Rc6 {[%clk 0:00:06]}  Kd7 {[%clk 0:00:09]} 53. Rh6 {[%clk 0:00:06]}  Rf2+ {[%clk 0:00:08]} 54. Kc3 {[%clk 0:00:06]}  Rf4 {[%clk 0:00:05]} 55. Rh5 {[%clk 0:00:07]}  Kc6 {[%clk 0:00:05]} 56. Rh6+ {[%clk 0:00:07]}  Kc7 {[%clk 0:00:05]} 57. Rh5 {[%clk 0:00:08]}  Kc6 {[%clk 0:00:06]} 58. Rh6+ {[%clk 0:00:08]}  Kc7 {[%clk 0:00:06]} 59. Rh5 {[%clk 0:00:09]}  Kc6 {[%clk 0:00:07]} 1/2-1/2


[Site "https://www.chess.com"]

[Event "Titled Tuesday Blitz July 11 Late 2023"]
[White "Oparin, Grigoriy"]
[Black "Firouzja, Alireza"]
[WhiteFideId "24125890"]
[BlackFideId "12573981"]
[WhiteElo "2987"]
[BlackElo "3090"]
[Result "0-1"]
[Round "6"]
[TimeControl "180+2"]
[Date "2023.07.11"]
[WhiteClock "0:00:00"]
[BlackClock "0:00:04"]
[Board "5"]

1. Nf3 {[%clk 0:03:00]}  c5 {[%clk 0:02:58]} 2. c4 {[%clk 0:02:59]}  Nc6 {[%clk 0:02:48]} 3. Nc3 {[%clk 0:02:59]}  g6 {[%clk 0:02:46]} 4. e3 {[%clk 0:02:59]}  Bg7 {[%clk 0:02:46]} 5. d4 {[%clk 0:03:00]}  d6 {[%clk 0:02:45]} 6. d5 {[%clk 0:02:56]}  Na5 {[%clk 0:02:44]} 7. Bd2 {[%clk 0:02:47]}  Nf6 {[%clk 0:02:37]} 8. Bd3 {[%clk 0:02:44]}  O-O {[%clk 0:02:35]} 9. O-O {[%clk 0:02:44]}  e6 {[%clk 0:02:33]} 10. e4 {[%clk 0:02:38]}  exd5 {[%clk 0:02:23]} 11. cxd5 {[%clk 0:02:39]}  a6 {[%clk 0:02:22]} 12. a4 {[%clk 0:02:38]}  Re8 {[%clk 0:02:21]} 13. Re1 {[%clk 0:02:38]}  Bg4 {[%clk 0:02:14]} 14. Ra3 {[%clk 0:02:20]}  Nd7 {[%clk 0:01:58]} 15. h3 {[%clk 0:02:08]}  Bxf3 {[%clk 0:01:52]} 16. Qxf3 {[%clk 0:02:09]}  Ne5 {[%clk 0:01:38]} 17. Qe2 {[%clk 0:02:09]}  Qb6 {[%clk 0:01:37]} 18. Bc1 {[%clk 0:01:51]}  Nb3 {[%clk 0:01:21]} 19. Be3 {[%clk 0:01:43]}  Nd4 {[%clk 0:01:16]} 20. Bxd4 {[%clk 0:01:43]}  cxd4 {[%clk 0:01:16]} 21. Nd1 {[%clk 0:01:43]}  Qb4 {[%clk 0:01:03]} 22. Kf1 {[%clk 0:01:38]}  Bh6 {[%clk 0:01:00]} 23. Kg1 {[%clk 0:01:22]}  Rac8 {[%clk 0:00:55]} 24. Rf1 {[%clk 0:01:16]}  Rc1 {[%clk 0:00:34]} 25. f4 {[%clk 0:01:09]}  Nxd3 {[%clk 0:00:34]} 26. Qxd3 {[%clk 0:01:07]}  Qc4 {[%clk 0:00:30]} 27. g3 {[%clk 0:00:42]}  Qxd3 {[%clk 0:00:22]} 28. Rxd3 {[%clk 0:00:43]}  Rxe4 {[%clk 0:00:23]} 29. Nf2 {[%clk 0:00:43]}  Ree1 {[%clk 0:00:23]} 30. Rxe1 {[%clk 0:00:43]}  Rxe1+ {[%clk 0:00:24]} 31. Kg2 {[%clk 0:00:44]}  Bg7 {[%clk 0:00:13]} 32. Rd1 {[%clk 0:00:37]}  Re2 {[%clk 0:00:12]} 33. b3 {[%clk 0:00:33]}  Rb2 {[%clk 0:00:11]} 34. Rd3 {[%clk 0:00:31]}  f5 {[%clk 0:00:11]} 35. Kf3 {[%clk 0:00:31]}  Kf7 {[%clk 0:00:12]} 36. g4 {[%clk 0:00:28]}  Bf6 {[%clk 0:00:12]} 37. gxf5 {[%clk 0:00:16]}  gxf5 {[%clk 0:00:13]} 38. Nh1 {[%clk 0:00:17]}  h5 {[%clk 0:00:11]} 39. Ng3 {[%clk 0:00:17]}  Rh2 {[%clk 0:00:07]} 40. Rd1 {[%clk 0:00:09]}  Kg6 {[%clk 0:00:03]} 41. Rh1 {[%clk 0:00:08]}  Rb2 {[%clk 0:00:02]} 42. Rg1 {[%clk 0:00:08]}  Rxb3+ {[%clk 0:00:03]} 43. Ke2 {[%clk 0:00:08]}  d3+ {[%clk 0:00:03]} 44. Kd2 {[%clk 0:00:09]}  Bd4 {[%clk 0:00:03]} 45. Rc1 {[%clk 0:00:05]}  h4 {[%clk 0:00:03]} 46. Nf1 {[%clk 0:00:05]}  Bc5 {[%clk 0:00:03]} 47. Ne3 {[%clk 0:00:01]}  Bb4+ {[%clk 0:00:03]} 48. Kd1 {[%clk 0:00:00]}  d2 {[%clk 0:00:04]} 0-1


[Site "https://www.chess.com"]

[Event "Titled Tuesday Blitz July 11 Late 2023"]
[White "Deac, Bogdan-Daniel"]
[Black "Grigoriants, Sergey"]
[WhiteFideId "1226380"]
[BlackFideId "4130804"]
[WhiteElo "2997"]
[BlackElo "2927"]
[Result "1/2-1/2"]
[Round "6"]
[TimeControl "180+2"]
[Date "2023.07.11"]
[WhiteClock "0:00:13"]
[BlackClock "0:00:15"]
[Board "7"]

1. d4 {[%clk 0:03:00]}  d5 {[%clk 0:02:53]} 2. Bf4 {[%clk 0:02:59]}  Nf6 {[%clk 0:02:48]} 3. e3 {[%clk 0:02:58]}  c5 {[%clk 0:02:48]} 4. c3 {[%clk 0:02:57]}  Nc6 {[%clk 0:02:42]} 5. Nd2 {[%clk 0:02:58]}  Bf5 {[%clk 0:02:41]} 6. Ngf3 {[%clk 0:02:45]}  e6 {[%clk 0:02:41]} 7. Nh4 {[%clk 0:02:10]}  Bg4 {[%clk 0:02:34]} 8. Qa4 {[%clk 0:02:08]}  Nd7 {[%clk 0:02:30]} 9. Nhf3 {[%clk 0:01:56]}  Be7 {[%clk 0:02:28]} 10. Be2 {[%clk 0:01:53]}  O-O {[%clk 0:02:26]} 11. O-O {[%clk 0:01:53]}  a6 {[%clk 0:02:17]} 12. Qd1 {[%clk 0:01:51]}  h6 {[%clk 0:02:15]} 13. h3 {[%clk 0:01:47]}  Bf5 {[%clk 0:02:15]} 14. Re1 {[%clk 0:01:43]}  Rc8 {[%clk 0:02:11]} 15. Nf1 {[%clk 0:01:35]}  b5 {[%clk 0:02:00]} 16. a3 {[%clk 0:01:24]}  Qb6 {[%clk 0:01:57]} 17. Bd3 {[%clk 0:01:00]}  Bxd3 {[%clk 0:01:53]} 18. Qxd3 {[%clk 0:01:01]}  Rfd8 {[%clk 0:01:43]} 19. Qe2 {[%clk 0:00:59]}  Nf6 {[%clk 0:01:38]} 20. Ng3 {[%clk 0:00:52]}  a5 {[%clk 0:01:31]} 21. Red1 {[%clk 0:00:51]}  cxd4 {[%clk 0:01:18]} 22. exd4 {[%clk 0:00:23]}  b4 {[%clk 0:01:17]} 23. axb4 {[%clk 0:00:22]}  axb4 {[%clk 0:01:17]} 24. Be3 {[%clk 0:00:18]}  bxc3 {[%clk 0:01:11]} 25. bxc3 {[%clk 0:00:19]}  Ra8 {[%clk 0:01:11]} 26. Ne5 {[%clk 0:00:15]}  Rxa1 {[%clk 0:00:58]} 27. Rxa1 {[%clk 0:00:14]}  Qb7 {[%clk 0:00:58]} 28. Qa6 {[%clk 0:00:06]}  Qxa6 {[%clk 0:00:52]} 29. Rxa6 {[%clk 0:00:07]}  Nxe5 {[%clk 0:00:53]} 30. dxe5 {[%clk 0:00:07]}  Nd7 {[%clk 0:00:53]} 31. Bd4 {[%clk 0:00:07]}  Kf8 {[%clk 0:00:46]} 32. f4 {[%clk 0:00:05]}  g6 {[%clk 0:00:46]} 33. Nf1 {[%clk 0:00:04]}  h5 {[%clk 0:00:45]} 34. g4 {[%clk 0:00:04]}  hxg4 {[%clk 0:00:43]} 35. hxg4 {[%clk 0:00:05]}  Nc5 {[%clk 0:00:28]} 36. Ra7 {[%clk 0:00:05]}  Ne4 {[%clk 0:00:25]} 37. f5 {[%clk 0:00:04]}  gxf5 {[%clk 0:00:22]} 38. gxf5 {[%clk 0:00:05]}  exf5 {[%clk 0:00:20]} 39. Ne3 {[%clk 0:00:05]}  Nxc3 {[%clk 0:00:14]} 40. Kg2 {[%clk 0:00:04]}  Nb5 {[%clk 0:00:14]} 41. Ra4 {[%clk 0:00:03]}  Nxd4 {[%clk 0:00:14]} 42. Rxd4 {[%clk 0:00:04]}  Bc5 {[%clk 0:00:13]} 43. Rxd5 {[%clk 0:00:05]}  Rxd5 {[%clk 0:00:09]} 44. Nxd5 {[%clk 0:00:06]}  Bd4 {[%clk 0:00:08]} 45. Kf3 {[%clk 0:00:06]}  Bxe5 {[%clk 0:00:08]} 46. Ne3 {[%clk 0:00:06]}  f4 {[%clk 0:00:07]} 47. Ng4 {[%clk 0:00:07]}  f6 {[%clk 0:00:07]} 48. Nf2 {[%clk 0:00:07]}  Kf7 {[%clk 0:00:07]} 49. Nd3 {[%clk 0:00:07]}  Ke6 {[%clk 0:00:07]} 50. Nxf4+ {[%clk 0:00:07]}  Bxf4 {[%clk 0:00:07]} 51. Kxf4 {[%clk 0:00:08]}  f5 {[%clk 0:00:08]} 52. Kf3 {[%clk 0:00:08]}  Ke5 {[%clk 0:00:08]} 53. Ke3 {[%clk 0:00:09]}  f4+ {[%clk 0:00:09]} 54. Kf3 {[%clk 0:00:09]}  Kf5 {[%clk 0:00:10]} 55. Kf2 {[%clk 0:00:10]}  Ke4 {[%clk 0:00:11]} 56. Ke2 {[%clk 0:00:10]}  f3+ {[%clk 0:00:12]} 57. Kf2 {[%clk 0:00:11]}  Kf4 {[%clk 0:00:13]} 58. Kf1 {[%clk 0:00:12]}  Ke3 {[%clk 0:00:14]} 59. Ke1 {[%clk 0:00:12]}  f2+ {[%clk 0:00:15]} 60. Kf1 {[%clk 0:00:13]}  Kf3 {[%clk 0:00:15]} 1/2-1/2


[Site "https://www.chess.com"]

[Event "Titled Tuesday Blitz July 11 Late 2023"]
[White "Nakamura, Hikaru"]
[Black "Chigaev, Maksim"]
[WhiteFideId "2016192"]
[BlackFideId "4108116"]
[WhiteElo "3231"]
[BlackElo "2962"]
[Result "1-0"]
[Round "6"]
[TimeControl "180+2"]
[Date "2023.07.11"]
[WhiteClock "0:00:16"]
[BlackClock "0:00:02"]
[Board "8"]

1. a3 {[%clk 0:03:00]}  e5 {[%clk 0:02:54]} 2. c4 {[%clk 0:02:58]}  Nc6 {[%clk 0:02:52]} 3. Nc3 {[%clk 0:02:56]}  g6 {[%clk 0:02:52]} 4. g3 {[%clk 0:02:54]}  Bg7 {[%clk 0:02:53]} 5. Bg2 {[%clk 0:02:55]}  d6 {[%clk 0:02:54]} 6. b4 {[%clk 0:02:55]}  f5 {[%clk 0:02:52]} 7. d3 {[%clk 0:02:51]}  Nf6 {[%clk 0:02:46]} 8. Bg5 {[%clk 0:02:48]}  h6 {[%clk 0:02:39]} 9. Bxf6 {[%clk 0:02:49]}  Bxf6 {[%clk 0:02:40]} 10. e3 {[%clk 0:02:45]}  O-O {[%clk 0:02:38]} 11. Nge2 {[%clk 0:02:45]}  Bg7 {[%clk 0:02:38]} 12. Rc1 {[%clk 0:02:38]}  a6 {[%clk 0:02:32]} 13. O-O {[%clk 0:02:38]}  Kh7 {[%clk 0:02:29]} 14. f4 {[%clk 0:02:35]}  Bd7 {[%clk 0:02:23]} 15. Nd5 {[%clk 0:02:33]}  Rb8 {[%clk 0:02:16]} 16. Qd2 {[%clk 0:02:24]}  Ne7 {[%clk 0:02:14]} 17. Ndc3 {[%clk 0:02:24]}  c6 {[%clk 0:02:09]} 18. c5 {[%clk 0:02:21]}  Be6 {[%clk 0:01:45]} 19. Na4 {[%clk 0:02:15]}  Bg8 {[%clk 0:01:34]} 20. Nb6 {[%clk 0:01:52]}  Qc7 {[%clk 0:01:29]} 21. Nc4 {[%clk 0:01:40]}  Bxc4 {[%clk 0:01:23]} 22. Rxc4 {[%clk 0:01:35]}  d5 {[%clk 0:01:20]} 23. Rc2 {[%clk 0:01:33]}  e4 {[%clk 0:01:21]} 24. d4 {[%clk 0:01:27]}  g5 {[%clk 0:01:18]} 25. a4 {[%clk 0:01:26]}  Ng6 {[%clk 0:01:16]} 26. b5 {[%clk 0:01:24]}  axb5 {[%clk 0:01:14]} 27. axb5 {[%clk 0:01:24]}  cxb5 {[%clk 0:00:56]} 28. Rb1 {[%clk 0:01:22]}  gxf4 {[%clk 0:00:52]} 29. Nxf4 {[%clk 0:01:23]}  Nxf4 {[%clk 0:00:52]} 30. gxf4 {[%clk 0:01:24]}  Ra8 {[%clk 0:00:41]} 31. Rcb2 {[%clk 0:01:23]}  b6 {[%clk 0:00:39]} 32. cxb6 {[%clk 0:01:02]}  Qxb6 {[%clk 0:00:39]} 33. Rxb5 {[%clk 0:01:02]}  Qe6 {[%clk 0:00:39]} 34. Kh1 {[%clk 0:00:57]}  Ra6 {[%clk 0:00:36]} 35. Bh3 {[%clk 0:00:56]}  Qf7 {[%clk 0:00:25]} 36. Rg1 {[%clk 0:00:53]}  Qh5 {[%clk 0:00:25]} 37. Qg2 {[%clk 0:00:43]}  Qf3 {[%clk 0:00:11]} 38. Rxd5 {[%clk 0:00:32]}  Kh8 {[%clk 0:00:02]} 39. Bxf5 {[%clk 0:00:23]}  Ra2 {[%clk 0:00:02]} 40. Bxe4 {[%clk 0:00:18]}  Qxg2+ {[%clk 0:00:03]} 41. Rxg2 {[%clk 0:00:17]}  Ra3 {[%clk 0:00:03]} 42. Rg3 {[%clk 0:00:17]}  Ra1+ {[%clk 0:00:03]} 43. Kg2 {[%clk 0:00:17]}  Re8 {[%clk 0:00:04]} 44. Rd7 {[%clk 0:00:17]}  Ra2+ {[%clk 0:00:03]} 45. Kf3 {[%clk 0:00:17]}  Bxd4 {[%clk 0:00:02]} 46. Rh7# {[%clk 0:00:16]} 1-0


[Site "https://www.chess.com"]

[Event "Titled Tuesday Blitz July 11 Late 2023"]
[White "Caruana, Fabiano"]
[Black "Warmerdam, Max"]
[WhiteFideId "2020009"]
[BlackFideId "1048104"]
[WhiteElo "3108"]
[BlackElo "2806"]
[Result "1-0"]
[Round "6"]
[TimeControl "180+2"]
[Date "2023.07.11"]
[WhiteClock "0:01:10"]
[BlackClock "0:00:44"]
[Board "9"]

1. c4 {[%clk 0:03:00]}  g6 {[%clk 0:02:49]} 2. g3 {[%clk 0:02:59]}  Bg7 {[%clk 0:02:50]} 3. Bg2 {[%clk 0:02:59]}  Nf6 {[%clk 0:02:48]} 4. Nc3 {[%clk 0:02:59]}  O-O {[%clk 0:02:49]} 5. d4 {[%clk 0:02:59]}  d6 {[%clk 0:02:49]} 6. Nf3 {[%clk 0:02:58]}  Nbd7 {[%clk 0:02:50]} 7. O-O {[%clk 0:02:58]}  e5 {[%clk 0:02:51]} 8. Qc2 {[%clk 0:02:58]}  exd4 {[%clk 0:02:50]} 9. Nxd4 {[%clk 0:02:58]}  Nb6 {[%clk 0:02:51]} 10. b3 {[%clk 0:02:52]}  c5 {[%clk 0:02:48]} 11. Nf3 {[%clk 0:02:35]}  Bf5 {[%clk 0:02:43]} 12. Qd2 {[%clk 0:02:17]}  d5 {[%clk 0:02:19]} 13. Nh4 {[%clk 0:01:51]}  Be6 {[%clk 0:02:05]} 14. Ba3 {[%clk 0:01:26]}  d4 {[%clk 0:01:41]} 15. Ne4 {[%clk 0:01:16]}  Nxe4 {[%clk 0:01:39]} 16. Bxe4 {[%clk 0:01:17]}  Qc7 {[%clk 0:01:36]} 17. Ng2 {[%clk 0:01:12]}  Rfe8 {[%clk 0:01:19]} 18. Bf3 {[%clk 0:01:11]}  Bg4 {[%clk 0:00:44]} 19. Bxg4 {[%clk 0:01:10]} 1-0


[Site "https://www.chess.com"]

[Event "Titled Tuesday Blitz July 11 Late 2023"]
[White "Perez Ponsa, Federico"]
[Black "He, Anthony"]
[WhiteFideId "117927"]
[BlackFideId "2088215"]
[WhiteElo "2795"]
[BlackElo "2986"]
[Result "1-0"]
[Round "6"]
[TimeControl "180+2"]
[Date "2023.07.11"]
[WhiteClock "0:00:17"]
[BlackClock "0:00:02"]
[Board "12"]

1. e4 {[%clk 0:02:09]}  c5 {[%clk 0:02:59]} 2. Nf3 {[%clk 0:02:09]}  e6 {[%clk 0:02:59]} 3. d4 {[%clk 0:02:09]}  cxd4 {[%clk 0:03:00]} 4. Nxd4 {[%clk 0:02:10]}  Nc6 {[%clk 0:03:00]} 5. Nc3 {[%clk 0:02:10]}  Qc7 {[%clk 0:03:00]} 6. Be3 {[%clk 0:02:11]}  a6 {[%clk 0:03:00]} 7. Qd2 {[%clk 0:02:12]}  Nf6 {[%clk 0:03:00]} 8. f4 {[%clk 0:02:12]}  Bb4 {[%clk 0:02:57]} 9. Bd3 {[%clk 0:02:13]}  Na5 {[%clk 0:02:57]} 10. a3 {[%clk 0:02:12]}  Bxc3 {[%clk 0:02:57]} 11. Qxc3 {[%clk 0:02:13]}  Qxc3+ {[%clk 0:02:58]} 12. bxc3 {[%clk 0:02:14]}  d5 {[%clk 0:02:58]} 13. exd5 {[%clk 0:02:15]}  Nxd5 {[%clk 0:02:59]} 14. Bd2 {[%clk 0:02:15]}  Nb6 {[%clk 0:02:59]} 15. Rb1 {[%clk 0:02:15]}  Nbc4 {[%clk 0:03:00]} 16. Rb4 {[%clk 0:02:15]}  Nxd2 {[%clk 0:02:59]} 17. Kxd2 {[%clk 0:02:16]}  Bd7 {[%clk 0:02:58]} 18. Rhb1 {[%clk 0:02:06]}  O-O-O {[%clk 0:02:58]} 19. Be4 {[%clk 0:02:02]}  g5 {[%clk 0:02:59]} 20. g3 {[%clk 0:01:54]}  gxf4 {[%clk 0:02:58]} 21. gxf4 {[%clk 0:01:55]}  b5 {[%clk 0:02:42]} 22. a4 {[%clk 0:01:52]}  bxa4 {[%clk 0:02:40]} 23. Bd3 {[%clk 0:01:41]}  Kc7 {[%clk 0:02:39]} 24. Bxa6 {[%clk 0:01:38]}  Rhg8 {[%clk 0:02:34]} 25. Bb5 {[%clk 0:01:28]}  Rg2+ {[%clk 0:02:28]} 26. Kd3 {[%clk 0:01:26]}  Bxb5+ {[%clk 0:01:48]} 27. Rxb5 {[%clk 0:01:25]}  Ra8 {[%clk 0:01:49]} 28. R1b4 {[%clk 0:01:13]}  Rxh2 {[%clk 0:00:42]} 29. Rxa4 {[%clk 0:01:08]}  Rh3+ {[%clk 0:00:43]} 30. Kd2 {[%clk 0:00:57]}  Rh2+ {[%clk 0:00:43]} 31. Kc1 {[%clk 0:00:57]}  Nb3+ {[%clk 0:00:43]} 32. cxb3 {[%clk 0:00:56]}  Rg8 {[%clk 0:00:44]} 33. Rg5 {[%clk 0:00:44]}  Rxg5 {[%clk 0:00:38]} 34. fxg5 {[%clk 0:00:45]}  Kd6 {[%clk 0:00:37]} 35. Ra7 {[%clk 0:00:44]}  e5 {[%clk 0:00:35]} 36. Nf5+ {[%clk 0:00:42]}  Ke6 {[%clk 0:00:35]} 37. Ng7+ {[%clk 0:00:42]}  Kd5 {[%clk 0:00:34]} 38. Rxf7 {[%clk 0:00:43]}  e4 {[%clk 0:00:35]} 39. Nf5 {[%clk 0:00:42]}  Ke6 {[%clk 0:00:33]} 40. Rf6+ {[%clk 0:00:41]}  Ke5 {[%clk 0:00:34]} 41. Ne3 {[%clk 0:00:42]}  h5 {[%clk 0:00:32]} 42. Rh6 {[%clk 0:00:37]}  Kf4 {[%clk 0:00:30]} 43. Nd1 {[%clk 0:00:25]}  Kxg5 {[%clk 0:00:30]} 44. Rh8 {[%clk 0:00:24]}  h4 {[%clk 0:00:25]} 45. b4 {[%clk 0:00:25]}  h3 {[%clk 0:00:25]} 46. b5 {[%clk 0:00:25]}  Rh1 {[%clk 0:00:23]} 47. Kc2 {[%clk 0:00:23]}  Rh2+ {[%clk 0:00:13]} 48. Kb3 {[%clk 0:00:24]}  Rh1 {[%clk 0:00:13]} 49. Ne3 {[%clk 0:00:22]}  Kf4 {[%clk 0:00:13]} 50. Nd5+ {[%clk 0:00:21]}  Ke5 {[%clk 0:00:13]} 51. Nb4 {[%clk 0:00:19]}  h2 {[%clk 0:00:11]} 52. Kc4 {[%clk 0:00:17]}  e3 {[%clk 0:00:11]} 53. b6 {[%clk 0:00:17]}  e2 {[%clk 0:00:06]} 54. b7 {[%clk 0:00:17]}  e1=Q {[%clk 0:00:02]} 55. Nd3+ {[%clk 0:00:17]} 1-0


[Site "https://www.chess.com"]

[Event "Titled Tuesday Blitz July 11 Late 2023"]
[White "Bartel, Mateusz"]
[Black "Bok, Benjamin"]
[WhiteFideId "1112635"]
[BlackFideId "1017063"]
[WhiteElo "2791"]
[BlackElo "2983"]
[Result "0-1"]
[Round "6"]
[TimeControl "180+2"]
[Date "2023.07.11"]
[WhiteClock "0:00:00"]
[BlackClock "0:00:02"]
[Board "13"]

1. f4 {[%clk 0:02:57]}  d5 {[%clk 0:02:59]} 2. Nf3 {[%clk 0:02:56]}  g6 {[%clk 0:02:59]} 3. g3 {[%clk 0:02:56]}  Bg7 {[%clk 0:02:59]} 4. Bg2 {[%clk 0:02:57]}  b6 {[%clk 0:02:59]} 5. O-O {[%clk 0:02:57]}  Bb7 {[%clk 0:02:59]} 6. d3 {[%clk 0:02:52]}  Nf6 {[%clk 0:02:59]} 7. Nc3 {[%clk 0:02:50]}  O-O {[%clk 0:02:58]} 8. Ne5 {[%clk 0:02:48]}  e6 {[%clk 0:02:35]} 9. e4 {[%clk 0:02:39]}  c5 {[%clk 0:02:34]} 10. Qe1 {[%clk 0:02:30]}  Na6 {[%clk 0:02:25]} 11. Kh1 {[%clk 0:02:20]}  Qc7 {[%clk 0:02:05]} 12. Bd2 {[%clk 0:02:14]}  Rad8 {[%clk 0:01:59]} 13. Rf2 {[%clk 0:02:14]}  Nb4 {[%clk 0:01:57]} 14. Rc1 {[%clk 0:02:00]}  a6 {[%clk 0:01:49]} 15. a3 {[%clk 0:01:59]}  Nc6 {[%clk 0:01:48]} 16. Nxc6 {[%clk 0:01:58]}  Bxc6 {[%clk 0:01:49]} 17. e5 {[%clk 0:01:58]}  Ng4 {[%clk 0:01:42]} 18. Re2 {[%clk 0:01:48]}  h5 {[%clk 0:01:35]} 19. Nd1 {[%clk 0:01:35]}  Rde8 {[%clk 0:01:24]} 20. Nf2 {[%clk 0:01:34]}  Nh6 {[%clk 0:01:22]} 21. c3 {[%clk 0:01:28]}  Qd7 {[%clk 0:01:18]} 22. Nh3 {[%clk 0:01:17]}  Nf5 {[%clk 0:01:13]} 23. Ng5 {[%clk 0:01:16]}  Bb5 {[%clk 0:01:11]} 24. c4 {[%clk 0:01:15]}  Bc6 {[%clk 0:01:12]} 25. Bc3 {[%clk 0:01:12]}  b5 {[%clk 0:01:06]} 26. cxd5 {[%clk 0:01:01]}  exd5 {[%clk 0:00:43]} 27. Bd2 {[%clk 0:00:48]}  Nd4 {[%clk 0:00:38]} 28. Rxc5 {[%clk 0:00:47]}  Nxe2 {[%clk 0:00:36]} 29. Qxe2 {[%clk 0:00:48]}  f6 {[%clk 0:00:33]} 30. Nf3 {[%clk 0:00:47]}  d4 {[%clk 0:00:30]} 31. Bb4 {[%clk 0:00:29]}  fxe5 {[%clk 0:00:15]} 32. Nxe5 {[%clk 0:00:24]}  Bxg2+ {[%clk 0:00:14]} 33. Kxg2 {[%clk 0:00:22]}  Bxe5 {[%clk 0:00:15]} 34. Rxe5 {[%clk 0:00:23]}  Qd5+ {[%clk 0:00:10]} 35. Rxd5 {[%clk 0:00:20]}  Rxe2+ {[%clk 0:00:11]} 36. Kh3 {[%clk 0:00:18]}  Rc8 {[%clk 0:00:09]} 37. Kh4 {[%clk 0:00:16]}  Kf7 {[%clk 0:00:06]} 38. h3 {[%clk 0:00:14]}  Kf6 {[%clk 0:00:05]} 39. Rxd4 {[%clk 0:00:13]}  Rxb2 {[%clk 0:00:05]} 40. Rd6+ {[%clk 0:00:12]}  Kf5 {[%clk 0:00:05]} 41. Rxa6 {[%clk 0:00:08]}  Rd8 {[%clk 0:00:05]} 42. Be7 {[%clk 0:00:07]}  Rxd3 {[%clk 0:00:04]} 43. Rf6+ {[%clk 0:00:07]}  Ke4 {[%clk 0:00:05]} 44. Rxg6 {[%clk 0:00:08]}  Rbb3 {[%clk 0:00:05]} 45. Bb4 {[%clk 0:00:07]}  Kf5 {[%clk 0:00:04]} 46. Rg5+ {[%clk 0:00:07]}  Ke4 {[%clk 0:00:04]} 47. f5 {[%clk 0:00:06]}  Ke5 {[%clk 0:00:05]} 48. Be7 {[%clk 0:00:04]}  Rf3 {[%clk 0:00:03]} 49. f6+ {[%clk 0:00:04]}  Ke6 {[%clk 0:00:04]} 50. Kxh5 {[%clk 0:00:03]}  Rxg3 {[%clk 0:00:04]} 51. h4 {[%clk 0:00:04]}  Rbf3 {[%clk 0:00:04]} 52. Kg6 {[%clk 0:00:03]}  Rh3 {[%clk 0:00:04]} 53. h5 {[%clk 0:00:03]}  Rhg3 {[%clk 0:00:04]} 54. h6 {[%clk 0:00:03]}  Rxg5+ {[%clk 0:00:04]} 55. Kxg5 {[%clk 0:00:04]}  Kf7 {[%clk 0:00:05]} 56. Bb4 {[%clk 0:00:03]}  Rf1 {[%clk 0:00:02]} 57. Bc3 {[%clk 0:00:03]}  Rg1+ {[%clk 0:00:02]} 58. Kf5 {[%clk 0:00:03]}  Rh1 {[%clk 0:00:03]} 59. Bd2 {[%clk 0:00:02]}  Rh5+ {[%clk 0:00:02]} 60. Ke4 {[%clk 0:00:02]}  Kxf6 {[%clk 0:00:02]} 61. Kd3 {[%clk 0:00:02]}  Ke6 {[%clk 0:00:02]} 62. Kc2 {[%clk 0:00:02]}  Kd5 {[%clk 0:00:02]} 63. Kb3 {[%clk 0:00:00]}  Rh4 {[%clk 0:00:02]} 0-1


[Site "https://www.chess.com"]